Cogmind - Beta 13 @@@ ROGUE MODE // 2024.05.08 @ 21:37:08 Player: Some Pennies Result: Destroyed by G-47 Trooper with Particle Gun Performance ------------- Evolutions (2) 1000 Regions Visited (5) 1000 Robots Destroyed (59) 295 Value Destroyed (1308) 1308 Prototype IDs (28) 560 Alien Tech Used (0) 0 Bonus (339) 339 TOTAL SCORE: 4502 Bonus ------- Follower Combat Kills 39 Aligned with FarCom 300 Cogmind --------- Core Integrity 0/550 Matter 224/300 Energy 100/100 System Corruption 0% Temperature Cool (9) Movement Core (50) Location -8/Materials Parts ------- > --- POWER (1) -------- (None) > --- PROPULSION (4) --- (None) > --- UTILITY (4) ------ (None) > --- WEAPON (2) ------- (None) > --- INVENTORY (5) ---- AWS/Thermal Peak State ------------ > --- POWER ------------ Light Ion Engine > --- PROPULSION ------- Light Treads Light Treads Light Treads Light Treads > --- UTILITY ---------- Humpback Hardened Light Armor Plating Hardened Light Armor Plating > --- WEAPON ----------- Pulse Rifle Light Assault Rifle > --- INVENTORY -------- Light Ion Engine Light Deuterium Engine Light Treads Light Treads Humpback Machine Analyzer Improved Sensor Array Improved Signal Interpreter Improved Terrain Scanner Seismic Detector Advanced Targeting Computer Armor Integrity Analyzer Medium Armor Plating Hardened Light Armor Plating Hardened Light Armor Plating Hardlight Generator Hacking Suite AWS/Thermal Beam Cannon Light Cannon Light Cannon Grenade Launcher Datajack Mining Laser [Rating: 21] Favorites ----------- Power Light Ion Engine Engine Light Ion Engine Propulsion Light Treads Treads Light Treads Utility Hardened Light Armor Plating Device Structural Scanner Storage Humpback Processor Transport Network Coupler Protection Hardened Light Armor Plating Weapon Light Assault Rifle Energy Gun Pulse Rifle Energy Cannon Beam Cannon Ballistic Gun Light Assault Rifle Ballistic Cannon Light Cannon Launcher Grenade Launcher Special Melee Weapon Datajack Build | -11 -10 -10 -10 -9 -8 ------- Run | Yrd Mat Min Exi Min Mat Slots Evolved 4 | . . . . . 4 Power . | . . . . . . Propulsion 2 | . . . . . 2 Utility 2 | . . . . . 2 Weapon . | . . . . . . Parts Attached 50 | 6 15 . 5 . 24 Power 6 | 1 3 . 1 . 1 Engine 6 | 1 3 . 1 . 1 Core . | . . . . . . Reactor . | . . . . . . Propulsion 11 | 2 2 . 1 . 6 Treads 11 | 2 2 . 1 . 6 Leg . | . . . . . . Wheel . | . . . . . . Hover . | . . . . . . Flight . | . . . . . . Utility 16 | 1 6 . 1 . 8 Device 3 | . 1 . . . 2 Storage 5 | 1 2 . 1 . 1 Processor 1 | . 1 . . . . Hackware . | . . . . . . Protection 7 | . 2 . . . 5 Artifact . | . . . . . . Weapon 17 | 2 4 . 2 . 9 Energy Gun 2 | . 1 . . . 1 Energy Cannon 4 | . 1 . 1 . 2 Ballistic Gun 7 | 2 2 . 1 . 2 Ballistic Cannon 2 | . . . . . 2 Launcher 1 | . . . . . 1 Special Weapon . | . . . . . . Impact Weapon . | . . . . . . Slashing Weapon . | . . . . . . Piercing Weapon . | . . . . . . Special Melee Weapon 1 | . . . . . 1 Unidentified Prototypes . | . . . . . . Parts Lost 19 | . . . . . 19 Power 2 | . . . . . 2 Propulsion 7 | . . . . . 7 Utility 6 | . . . . . 6 Weapon 4 | . . . . . 4 Highest Loss Streak 15 | . . . . . 15 To Critical Strikes . | . . . . . . Average Slot Usage (%) 90 | . 100 100 83 85 85 Engine 12 | . 14 14 14 14 8 Treads 29 | . 28 28 28 28 33 Device 2 | . 2 . . . 7 Storage 12 | . 14 14 14 14 9 Protection 8 | . 11 14 9 . 9 Energy Gun 1 | . 2 . . . 3 Energy Cannon 8 | . 4 14 8 14 3 Ballistic Gun 13 | . 20 14 8 14 9 Naked Turns 3 | . . . . . 3 Heaviest Build 215 | 12 34 34 207 207 215 Greatest Support 80 | 40 40 40 40 40 80 Greatest Overweight (x) 69 | . . . 5 5 69 Average Overweight (x) . | . . . . 5 2 Largest Inventory Capacity 35 | 8 15 15 35 35 35 Average Capacity 23 | 7 10 15 21 35 34 Most Carried 27 | 5 14 15 18 21 27 Average Carried 15 | 2 10 14 14 19 22 Final Capacity 35 | 8 15 15 35 35 5 Final Carried 21 | 5 14 15 18 21 2 Class Distribution -------------------- 48% | Hauler-Mutant 43% | Mutant 8% | Scavenger-Mutant Dominant Class ---------------- Mutant | -10/Materials Mutant | -10/Mines Mutant | -10/Exiles Hauler-Mutant | -9/Mines Hauler-Mutant | -8/Materials Resources | -11 -10 -10 -10 -9 -8 ----------- Run | Yrd Mat Min Exi Min Mat Matter Collected 1389 | 308 517 45 . 230 289 Remotely . | . . . . . . Salvage Created 1881 | 166 768 132 . 271 544 Parts 119 | 13 46 20 . 16 24 Haulers Intercepted 1 | . 1 . . . . Recyclers Shooed 3 | . 1 1 . 1 . Parts Field Recycled . | . . . . . . Retrieved Matter . | . . . . . . Parts Self-Destructed . | . . . . . . Prevented . | . . . . . . Kills | -11 -10 -10 -10 -9 -8 ------- Run | Yrd Mat Min Exi Min Mat Combat Hostiles Destroyed 39 | . 15 6 . 7 11 Guns 27 | . 15 3 . 1 8 Cannons 12 | . . 3 . 6 3 Classes Destroyed 13 | 2 7 1 . 1 2 Worker 2 | . 2 . . . . Builder 1 | . . 1 . . . Tunneler 6 | 5 . 1 . . . Hauler 1 | . 1 . . . . Recycler 4 | 1 2 . . 1 . Mechanic 1 | . 1 . . . . Operator 2 | . 1 . . . 1 Watcher 3 | . 2 . . . 1 Swarmer 16 | . 6 6 . 4 . Grunt 20 | . 9 . . 2 9 Brawler 1 | . . . . 1 . Duelist 1 | . . . . . 1 Sentry 1 | . . . . . 1 Best Kill Streak 5 | 2 5 4 . 4 3 Combat Bots Only 3 | . 3 3 . 3 3 Max Kills in Single Turn 2 | 1 2 2 . 1 1 Gunslinging 1 | . 1 . . . . Exploded . | . . . . . . Melee . | . . . . . . Uniques/NPCs Destroyed . | . . . . . . Combat | -11 -10 -10 -10 -9 -8 -------- Run | Yrd Mat Min Exi Min Mat Hostile Shots Fired 481 | . 94 25 . 41 321 Missed 139 | . 31 9 . 14 85 Damage Taken 4511 | . 676 121 . 250 3464 Core 734 | . 128 24 . 30 552 Absorbed by Shields . | . . . . . . Core Remaining (%) 63 | 100 . . . 27 . Volleys Fired 191 | 8 77 17 . 17 72 Largest 2 | 2 2 2 . 2 2 Hottest 83 | 40 80 80 . 80 83 Shots Fired 377 | 16 155 32 2 37 135 Gun 297 | 16 154 17 1 19 90 Cannon 80 | . 1 15 1 18 45 Launcher . | . . . . . . Special . | . . . . . . Kinetic 295 | 16 142 17 1 19 100 Thermal 82 | . 13 15 1 18 35 Explosive . | . . . . . . Electromagnetic . | . . . . . . Robot Hit Streak 12 | 8 9 5 . 7 12 Robot Miss Streak 5 | 2 5 3 . 4 4 Penetration Max . | . . . . . . Secondary Targets 6 | . 4 . . . 2 Max Gunslinging Chain 1 | . 1 . . . 1 Shots Hit Robots 224 | 10 89 15 . 19 91 Core Hits 112 | 7 43 11 . 11 40 Critical Kills . | . . . . . . Critical Parts Destroyed 1 | . 1 . . . . Critical Strikes 2 | . 1 . . . 1 Burn 1 | . . . . . 1 Destroy 1 | . 1 . . . . Melee Attacks . | . . . . . . Impact . | . . . . . . Slashing . | . . . . . . Piercing . | . . . . . . Sneak Attacks . | . . . . . . Combat Hostiles . | . . . . . . Follow-up Attacks . | . . . . . . Damage Inflicted 2933 | 124 1131 245 . 281 1152 Guns 2071 | 124 1131 66 . 70 680 Cannons 862 | . . 179 . 211 472 Explosions . | . . . . . . Melee . | . . . . . . Ramming . | . . . . . . Kinetic 1994 | 124 1054 66 . 70 680 Thermal 939 | . 77 179 . 211 472 Explosive . | . . . . . . Electromagnetic . | . . . . . . Impact . | . . . . . . Slashing . | . . . . . . Piercing . | . . . . . . Highest Corruption 7 | . 7 7 7 7 . Average Corruption 6 | . 4 7 7 7 . Corruption Purged . | . . . . . . Corruption Blocked . | . . . . . . Effects 100 | . 11 24 27 38 . Message Errors 28 | . 6 9 3 10 . Matter Fused 30 | . 2 4 9 15 . Heat Flow Errors 8 | . . 2 5 1 . Energy Discharges 8 | . . 1 3 4 . Data Loss (minor) 15 | . 1 4 5 5 . Data Loss (major) 3 | . 1 2 . . . Misfires 6 | . 1 . 2 3 . Weapon Failures 2 | . . 2 . . . Overload Shots . | . . . . . . Overflow Damage . | . . . . . . Projectiles . | . . . . . . Explosions . | . . . . . . Melee . | . . . . . . Knockbacks 10 | . . . . . 10 Impact . | . . . . . . Kinetic 9 | . . . . . 9 Secondary 1 | . . . . . 1 Self-Inflicted Damage . | . . . . . . Shots . | . . . . . . Rammed . | . . . . . . Targets Rammed . | . . . . . . Kicked . | . . . . . . Crushed . | . . . . . . Highest Temperature 428 | . 126 205 268 188 428 Average Temperature 111 | . 31 83 106 74 181 Received Heat Transfer 2229 | . 330 . . 72 1827 Effects 7 | . . . . . 7 Shutdowns 1 | . . . . . 1 Interference 3 | . . . . . 3 Short Circuit 2 | . . . . . 2 Damage (minor) 1 | . . . . . 1 Siege Activations . | . . . . . . Robots Corrupted . | . . . . . . Combat Hostiles . | . . . . . . Parts Fried . | . . . . . . Impact Corruptions . | . . . . . . Robots Melted . | . . . . . . Combat Hostiles . | . . . . . . Parts Melted 4 | . . 1 . . 3 Heat Transferred 2062 | . 175 370 . 444 1073 Parts Sabotaged . | . . . . . . Parts Stolen . | . . . . . . Parts Stripped . | . . . . . . Power Chain Reactions . | . . . . . . Alert | -11 -10 -10 -10 -9 -8 ------- Run | Yrd Mat Min Exi Min Mat Peak Influence 235 | 30 235 181 . 145 140 Initial 19 | . 19 6 . . 12 Average 53 | 15 75 66 . 43 36 Maximum Alert Level 1 | . 1 . . . . Low Security (%) 99 | 100 98 100 . 100 100 Level 1 . | . 1 . . . . Level 2 . | . . . . . . Level 3 . | . . . . . . Level 4 . | . . . . . . Level 5 . | . . . . . . High Security . | . . . . . . Max Security . | . . . . . . Squads Dispatched 5 | . 3 . . . 2 Investigation 2 | . 2 . . . . Extermination . | . . . . . . Reinforcement 2 | . 1 . . . 1 Assault . | . . . . . . Garrison 1 | . . . . . 1 Intercept . | . . . . . . Searches Triggered . | . . . . . . Construction Impeded . | . . . . . . Haulers Reinforced . | . . . . . . Active Scanning Responses . | . . . . . . Cargo Convoy Interrupts . | . . . . . . Stealth | -11 -10 -10 -10 -9 -8 --------- Run | Yrd Mat Min Exi Min Mat Distress Signals 4 | . 3 . . . 1 Communications Jammed . | . . . . . . Distress Signals . | . . . . . . Times Spotted 62 | . 27 6 . 8 21 Peak Tracking Total 9 | . 3 3 . 3 9 Tactical Retreats 2 | . . 1 . . 1 Traps | -11 -10 -10 -10 -9 -8 ------- Run | Yrd Mat Min Exi Min Mat Traps Triggered 6 | . 6 . . . . Indirectly . | . . . . . . Trap Hack Attempts . | . . . . . . Triggered . | . . . . . . Disarmed . | . . . . . . Reprogrammed . | . . . . . . Reused . | . . . . . . Traps Extracted . | . . . . . . Installed . | . . . . . . Triggered . | . . . . . . Machines | -11 -10 -10 -10 -9 -8 ---------- Run | Yrd Mat Min Exi Min Mat Machines Disabled 3 | . . . . . 3 Max in Single Turn 1 | . . . . . 1 Machines Repaired . | . . . . . . Machines Dismantled . | . . . . . . Machines Sabotaged . | . . . . . . Overloaded Fab Kills . | . . . . . . Hacking | -11 -10 -10 -10 -9 -8 --------- Run | Yrd Mat Min Exi Min Mat Machines Accessed 11 | . 7 1 1 . 2 Terminals 9 | . 6 1 . . 2 Fabricators . | . . . . . . Repair Stations . | . . . . . . Recycling Units 1 | . 1 . . . . Scanalyzers . | . . . . . . Garrison Access . | . . . . . . Total Hacks 29 | . 20 3 1 . 5 Successful 10 | . 8 . 1 . 1 Failed 18 | . 11 3 . . 4 Catastrophic 6 | . 4 1 . . 1 Database Lockouts 1 | . 1 . . . . Manual 10 | . 6 3 1 . . Terminals 27 | . 19 3 . . 5 Fabricators . | . . . . . . Repair Stations . | . . . . . . Recycling Units 1 | . 1 . . . . Scanalyzers . | . . . . . . Garrison Access . | . . . . . . Terminal Hacks 10 | . 8 . 1 . 1 Robot Analysis 1 | . 1 . . . . Prototype ID Bank 3 | . 3 . . . . Emergency Access Points 1 | . 1 . . . . Unreport Threat 1 | . 1 . . . . Locate Traps 2 | . 1 . . . 1 Zone Layout 1 | . 1 . . . . Derelict Proto ID Bank 1 | . . . 1 . . Fabricator Hacks . | . . . . . . Repair Station Hacks . | . . . . . . Recycling Unit Hacks . | . . . . . . Scanalyzer . | . . . . . . Garrison Access Hacks . | . . . . . . Unauthorized Hacks . | . . . . . . Terminals . | . . . . . . Fabricators . | . . . . . . Repair Stations . | . . . . . . Recycling Units . | . . . . . . Scanalyzers . | . . . . . . Garrison Access . | . . . . . . Data Cores Recovered . | . . . . . . Used . | . . . . . . Hacking Detections 9 | . 6 1 . . 2 Full Trace Events . | . . . . . . Feedback Events . | . . . . . . Feedback Blocked . | . . . . . . Robot Schematics Acquired . | . . . . . . Robots Built . | . . . . . . Authchips . | . . . . . . Time . | . . . . . . Total Robot Build Rating . | . . . . . . Part Schematics Acquired . | . . . . . . Parts Built . | . . . . . . Authchips . | . . . . . . Time . | . . . . . . Total Part Build Rating . | . . . . . . Parts Repaired . | . . . . . . Time . | . . . . . . Parts Recycled . | . . . . . . Recycled Matter . | . . . . . . Retrieved Matter . | . . . . . . Retrieved Components . | . . . . . . Parts Scanalyzed . | . . . . . . Part Schematics Acquired . | . . . . . . Parts Damaged . | . . . . . . Bothacking | -11 -10 -10 -10 -9 -8 ------------ Run | Yrd Mat Min Exi Min Mat Used RIF Installer . | . . . . . . Robots Hacked . | . . . . . . Non-combat . | . . . . . . Combat . | . . . . . . Robot Hacks Applied . | . . . . . . Relay Couplers Released . | . . . . . . Fabnet Peak Effective % . | . . . . . . Robots Rewired . | . . . . . . Allies Hacked . | . . . . . . Hacks Repelled . | . . . . . . Allies | -11 -10 -10 -10 -9 -8 -------- Run | Yrd Mat Min Exi Min Mat Total Allies 6 | . . 3 . 3 . Largest Group 3 | . . 3 3 3 . Highest-Rated Group 69 | . . 69 69 40 . Highest-Rated Ally 31 | . . 31 31 16 . Total Orders . | . . . . . . Ally Attacks 10 | . . . . 10 . Total Damage 81 | . . . . 81 . Kills 1 | . . . . 1 . Allies Corrupted . | . . . . . . Allies Melted . | . . . . . . Intel | -11 -10 -10 -10 -9 -8 ------- Run | Yrd Mat Min Exi Min Mat Robot Analysis Total 1 | . 1 . . . . Derelict Logs Recovered 3 | . . 3 . . . Drone Launches . | . . . . . . Drone Recoveries . | . . . . . . Exploration | -11 -10 -10 -10 -9 -8 ------------- Run | Yrd Mat Min Exi Min Mat Turns Passed 6222 | 206 1554 865 835 1366 1396 Spaces Moved 2356 | 110 790 509 396 235 316 Core 11 | 9 . . . . 2 Treads 2345 | 101 790 509 396 235 314 Legs . | . . . . . . Wheels . | . . . . . . Hover . | . . . . . . Flight . | . . . . . . Fastest Speed 50 | 50 160 160 160 560 320 Average Speed 232 | 151 160 160 204 560 346 Slowest Speed 3500 | 160 160 160 560 560 3500 Overloaded Moves . | . . . . . . Propulsion Burnouts . | . . . . . . Robots Hopped . | . . . . . . Cave-ins Triggered . | . . . . . . Exploration Rate (%) 56 | 5 98 98 62 56 18 Regions Visited 5 Branch Regions 3 Pre-discovered Areas 2 | . . 1 . 1 . Known Exits Taken . | . . . . . . Unknown Exits Taken 5 | 1 1 1 1 1 . Scrap Searched 2 | . . 1 . 1 . Spaces Dug . | . . . . . . Terrain Destroyed . | . . . . . . Melee . | . . . . . . Projectile . | . . . . . . AOE . | . . . . . . Terrain Rammed . | . . . . . . Walls Destroyed . | . . . . . . Machines Disabled . | . . . . . . Actions | -11 -10 -10 -10 -9 -8 --------- Run | Yrd Mat Min Exi Min Mat Total 2808 | 134 937 530 432 259 516 Wait 113 | . 20 2 . 5 86 Move 2351 | 109 789 508 395 234 316 Hop . | . . . . . . Pick Up 64 | 11 19 2 15 3 14 Fast Attach 4 | . 2 . 2 . . Attach 24 | 6 1 . 1 . 16 Detach . | . . . . . . Swap 22 | . 12 . 2 . 8 Drop 39 | . 17 1 17 . 4 Fire 191 | 8 77 17 . 17 72 Melee . | . . . . . . Ram . | . . . . . . Kick . | . . . . . . Crush . | . . . . . . Escape Stasis . | . . . . . . Rewire . | . . . . . . Trap . | . . . . . . Miscellaneous . | . . . . . . Route ------- -11/Scrapyard -10/Materials (discovered 4 exits: *Mat x3 / *Min) -10/Mines (discovered 3 exits: *Mat x2 / *Exi) -10/Exiles -9/Mines -8/Materials History --------- Turn | Location | Event 7 | -11/Scrapyard | Discovered new exit (range 15) 207 | -11/Scrapyard | Entered Materials 304 | -10/Materials | Build established: Mutant 315 | -10/Materials | Central database locked down 673 | -10/Materials | Discovered new exit (range 16) 900 | -10/Materials | Core integrity fell below 50% 1066 | -10/Materials | Discovered new exit (range 15) 1070 | -10/Materials | Build established: Scavenger-Mutant 1164 | -10/Materials | Discovered new exit (range 7) 1512 | -10/Materials | Discovered new exit (range 8) 1543 | -10/Materials | Build established: Mutant 1761 | -10/Materials | Entered Mines 1784 | -10/Mines | Discovered new exit (range 14) 1826 | -10/Mines | Identified exit to Materials 1924 | -10/Mines | Escorted by a lone wolf Derelict 2111 | -10/Mines | Learned Materials trap positions 2514 | -10/Mines | Learned location of Zion (-6) 2620 | -10/Mines | Deemed a non-threat by the Exiles lab entrance 2620 | -10/Mines | Discovered new exit (range 5) 2626 | -10/Mines | Entered Exiles 2626 | -10/Exiles | Accompanied by 3 allies 2656 | -10/Exiles | Led the pair of lost Derelicts to a safe place 2669 | -10/Exiles | Met 8R-AWN 2698 | -10/Exiles | Met EX-HEX 2741 | -10/Exiles | Met EX-BIN 2760 | -10/Exiles | Aligned with FarCom system 2762 | -10/Exiles | Given EX-Vault access code 2803 | -10/Exiles | Opened EX-Vault 2819 | -10/Exiles | Found AWS/Thermal 2856 | -10/Exiles | Warned to stay clear of 0b10 Research branches 3122 | -10/Exiles | Met EX-DEC 3399 | -10/Exiles | Discovered new exit (range 10) 3461 | -10/Exiles | Left Exiles lab with AWS/Thermal 3461 | -10/Exiles | Entered Mines 3493 | -9/Mines | Build established: Hauler-Mutant 3506 | -9/Mines | Assisted by bots powering up and referring to "LRC-V3" 3563 | -9/Mines | Assembled infested the area 3568 | -9/Mines | Assisted by a Guerilla fighting off Assembled 3698 | -9/Mines | Learned location of Storage (-7) 4402 | -9/Mines | Discovered new exit (range 13) 4827 | -9/Mines | Entered Materials 4827 | -8/Materials | Evolved 4 slots: Propulsion x2, Utility x2 4828 | -8/Materials | Loaded intel: 19 trap records 5882 | -8/Materials | Garrison activated, responded to threat 5991 | -8/Materials | Lost 3 parts (1p1n1u) 6181 | -8/Materials | Core integrity fell below 50% 6214 | -8/Materials | Core integrity fell below 20% 6223 | -8/Materials | Destroyed by G-47 Trooper with Particle Gun Last Messages --------------- 06173_ K-01 Serf collects debris. 06175_ Lgt. Cannon destroyed. 06175_ Humpback destroyed. 06175_ Critical hit (Burn: +37). 06176_ Dropped Beam Cannon. 06176_ Broken Lgt. Treads destroyed. 06177_ K-01 Serf collects debris. 06177_ Critical hit (Burn: +37). 06180_ K-01 Serf collects debris. 06183_ Critical hit (Burn: +37). 06184_ K-01 Serf collects debris. 06185_ K-01 Serf destroyed. 06188_ Critical hit (Burn: +37). 06191_ Hrd. Light Armor Plating destroyed. 06199_ S-10 Pest destroyed. 06210_ Hrd. Light Armor Plating destroyed. 06213_ Acquired 37 matter. 06220_ Humpback destroyed. 06220_ Critical hit (Burn: +37). [Achievement: Back For More] Map ----- +----------------------------------------------------+ | ?????????????????????###??????????????????????? | | ?????????????????????## ??????????????????????? | | ?????????????????????## "?????????????????????? | | ?????????????????????## T?????????????????????? | | ????????????????????? # " ????????????????????? | | ????????????????????? # ????????????????????? | | ????????????????????? # ???????????????????? | | ???????????????????????? ????????????######## | | ??????????????????????? ! ????????######## | | ?????????????? # #####+############# | | ?????????????^ ##+####### ############ | | ?????????????? + | | ????????????? ####### | | ?????????????####+### """ ###%######## | | ?????????????# #^ """ %####+####??## | | ??????????????????? #^ """ [#%[* [ ##??## | | ??????????????????? # %+ ! ##??## | | ??????????????????? # ^ %!#= "" ##??######## | | ??????????????????? # "" # "" ##??######## | | ??????????????????? # ^"" # """ ##????## | | ???????????????????## """[ # ##????## | | ???????????????????## =%=####+####????## | | ???????????????????##[ # ## ???? # # | | ???????????????????##gg!" " #?????? # # | | ???????????????????# !=!" T #?????? # ? # | | ???????????????????##!@!!! " #?????? + ? + | | ???????????????????##|*!%!%t##+####?????? # ? # | | ???????????????????#[%!^[%g% #??????????? # | | ???????????????????#!!/ *!% #?????????^^^# | | ???????????????????# =s* " #????????????? | | ???????????????????##%*""" % #????????????? | | ????????????????????#^% #????????????? | | ????????????????????# #????????????? | | ????????????????????# """ #????????????? | | ????????????????????# """ #????????????? | | ??????????????????? """ ???????????? | | ?????????????????? ???????????? | | ?????????????????? ? w ??????????? | | ??????????????????? ##### ###########?????????? | | ??????????????????? ????# ????????????????????? | | ????????????????????????#+????????????????????? | | ??????????????????????????????????????????????? | | ??????????????????????????????????????????????? | | ??????????????????????????????????????????????? | | ??????????????????????????????????????????????? | | ??????????????????????????????????????????????? | | ??????????????????????????????????????????????? | | ??????????????????????????????????????????????? | | ??????????????????????????????????????????????? | | ??????????????????????????????????????????????? | +----------------------------------------------------+ Best States ------------- Heat Dissipation 41 Energy Generation 14 Energy Capacity 250 Matter Stores 300 Matter Capacity 300 Sight Range 16 Terrain Scan Range 16 Terrain Scan Density 10 Armor Coverage 375 Evasion (%) 50 Recoil Reduction 4 Item Schematics ----------------- None Robot Schematics ------------------ None Fabricated ------------ Nothing Alien Tech Used ----------------- None Achievements -------------- Back For More Challenges ------------ None Game ------ Seed ArmageddonFocalCycler Manual? 0 Play Time 00:37:51 Cumulative 41.4 hours Start 2024.05.08 @ 20:51:49 End 2024.05.08 @ 21:37:08 Sessions 1 Manual Loads 0 Difficulty Rogue Special Mode None Game No. 50 Rogue 45 Adventurer 5 Explorer 0 Win Type - Total 0 Types 0/0/0/0/0/0/0/0/0 Lore% 27 Gallery% 30 Achievement% 25 Wizard Run 0 Options --------- Layout 2 ASCII 0 Keyboard 0 Movement Mouse Keybinds 0 Fullscreen 2 Font 24/Smallcaps Map View 50x44 Zoom Use 0% Tactical HUD 1 Map Filters NONE Filters NONE Steam 1 RUN: 63cf41ca-4287-4e2d-9729-f6d018c17c9d